[Event "Late-Titled-Tuesday-Blitz-August-29-2023"]
[Site "Chess.com"]
[Date "2023.08.29"]
[Round "3"]
[White "Bauman_Guy"]
[Black "secretsuperstar7"]
[Result "1-0"]
[WhiteElo "2850"]
[BlackElo "2393"]
[TimeControl "180+1"]
[EndTime "14:24:37 PDT"]
[Termination "Bauman_Guy won by resignation"]

1. e4 {[%clk 0:02:33.1]} 1... c5 {[%clk 0:02:57.6]} 2. Nf3 {[%clk 0:02:31.3]}
2... e6 {[%clk 0:02:52]} 3. d4 {[%clk 0:02:31.2]} 3... cxd4 {[%clk 0:02:52.2]}
4. Nxd4 {[%clk 0:02:32.1]} 4... a6 {[%clk 0:02:52.3]} 5. Bd3 {[%clk 0:02:31.5]}
5... Qc7 {[%clk 0:02:52.3]} 6. O-O {[%clk 0:02:31.3]} 6... Nc6 {[%clk
0:02:52.5]} 7. Nxc6 {[%clk 0:02:31]} 7... dxc6 {[%clk 0:02:49.2]} 8. Nd2 {[%clk
0:02:29.4]} 8... e5 {[%clk 0:02:48.9]} 9. a4 {[%clk 0:02:27.1]} 9... b6 {[%clk
0:02:39.3]} 10. Nc4 {[%clk 0:02:25.8]} 10... Nf6 {[%clk 0:02:37]} 11. Be3 {[%clk
0:02:25.1]} 11... c5 {[%clk 0:02:29]} 12. f4 {[%clk 0:02:22.7]} 12... Ng4 {[%clk
0:02:21.1]} 13. Bd2 {[%clk 0:02:20.7]} 13... Be6 {[%clk 0:02:14.3]} 14. h3
{[%clk 0:02:17.9]} 14... Bxc4 {[%clk 0:02:05.2]} 15. Bxc4 {[%clk 0:02:18.8]}
15... Nf6 {[%clk 0:02:04.9]} 16. fxe5 {[%clk 0:02:06.2]} 16... Qxe5 {[%clk
0:02:03.8]} 17. Bc3 {[%clk 0:02:03.9]} 17... Qe7 {[%clk 0:01:56.7]} 18. e5
{[%clk 0:02:02.9]} 18... Nd7 {[%clk 0:01:36.1]} 19. Rxf7 {[%clk 0:01:57.7]}
19... Qd8 {[%clk 0:01:35.1]} 20. Qd5 {[%clk 0:01:50.8]} 20... Be7 {[%clk
0:01:26.4]} 21. Rxe7+ {[%clk 0:01:42.2]} 21... Qxe7 {[%clk 0:01:23.4]} 22. Qxa8+
{[%clk 0:01:42.3]} 1-0

[Event "Late-Titled-Tuesday-Blitz-August-29-2023"]
[Site "Chess.com"]
[Date "2023.08.29"]
[Round "3"]
[White "matagordo"]
[Black "MarcoRiehle"]
[Result "0-1"]
[WhiteElo "2197"]
[BlackElo "2836"]
[TimeControl "180+1"]
[EndTime "14:24:49 PDT"]
[Termination "MarcoRiehle won by resignation"]

1. d4 {[%clk 0:02:58.6]} 1... d5 {[%clk 0:02:59.8]} 2. Bf4 {[%clk 0:02:58.2]}
2... h5 {[%clk 0:02:57.9]} 3. Nf3 {[%clk 0:02:56.3]} 3... e6 {[%clk 0:02:58.1]}
4. e3 {[%clk 0:02:47.1]} 4... c5 {[%clk 0:02:54.6]} 5. Nbd2 {[%clk 0:02:44.9]}
5... Bd6 {[%clk 0:02:53.8]} 6. Ne5 {[%clk 0:02:40.5]} 6... g5 {[%clk 0:02:51.1]}
7. Bg3 {[%clk 0:02:24.4]} 7... h4 {[%clk 0:02:49.8]} 8. Nxf7 {[%clk 0:02:24.3]}
8... Kxf7 {[%clk 0:02:47.6]} 9. Qf3+ {[%clk 0:02:23.4]} 9... Nf6 {[%clk
0:02:32.8]} 10. Be5 {[%clk 0:02:23.9]} 10... Nc6 {[%clk 0:02:29.9]} 11. Bb5
{[%clk 0:01:53.8]} 11... Nxe5 {[%clk 0:02:24.8]} 12. dxe5 {[%clk 0:01:52.3]}
12... Bxe5 {[%clk 0:02:25.7]} 13. O-O-O {[%clk 0:01:50.3]} 13... Qb6 {[%clk
0:02:19.1]} 14. c4 {[%clk 0:01:25.3]} 14... a6 {[%clk 0:02:10.8]} 15. cxd5
{[%clk 0:01:10.7]} 15... Qxb5 {[%clk 0:02:09.9]} 16. dxe6+ {[%clk 0:01:06.9]}
16... Bxe6 {[%clk 0:02:10.8]} 17. b3 {[%clk 0:00:54.9]} 17... g4 {[%clk
0:02:04.2]} 0-1

[Event "Late-Titled-Tuesday-Blitz-August-29-2023"]
[Site "Chess.com"]
[Date "2023.08.29"]
[Round "3"]
[White "laskakid"]
[Black "TC2304"]
[Result "0-1"]
[WhiteElo "2169"]
[BlackElo "2401"]
[TimeControl "180+1"]
[EndTime "14:24:50 PDT"]
[Termination "TC2304 won by resignation"]

1. d4 {[%clk 0:03:00.9]} 1... d5 {[%clk 0:03:00]} 2. c4 {[%clk 0:03:00.6]} 2...
c6 {[%clk 0:03:00.8]} 3. Nf3 {[%clk 0:02:59.9]} 3... Nf6 {[%clk 0:03:01.3]} 4.
Nc3 {[%clk 0:02:59.9]} 4... a6 {[%clk 0:03:01.4]} 5. c5 {[%clk 0:02:59.4]} 5...
Bf5 {[%clk 0:02:56.9]} 6. Qb3 {[%clk 0:02:57.3]} 6... Ra7 {[%clk 0:02:57.4]} 7.
h3 {[%clk 0:02:54.1]} 7... Nbd7 {[%clk 0:02:54.3]} 8. Bf4 {[%clk 0:02:53.1]}
8... e6 {[%clk 0:02:52.1]} 9. e3 {[%clk 0:02:52.8]} 9... Be7 {[%clk 0:02:48.9]}
10. Be2 {[%clk 0:02:52.5]} 10... O-O {[%clk 0:02:48.8]} 11. O-O {[%clk
0:02:49.5]} 11... h6 {[%clk 0:02:44]} 12. Rac1 {[%clk 0:02:37.2]} 12... Ne4
{[%clk 0:02:43.2]} 13. Nxe4 {[%clk 0:02:34.5]} 13... Bxe4 {[%clk 0:02:44.1]} 14.
Nd2 {[%clk 0:02:28.2]} 14... Bg6 {[%clk 0:02:42.7]} 15. Bd3 {[%clk 0:02:19.9]}
15... Bxd3 {[%clk 0:02:41.8]} 16. Qxd3 {[%clk 0:02:20.1]} 16... Bf6 {[%clk
0:02:40.9]} 17. Bd6 {[%clk 0:02:18.3]} 17... Be7 {[%clk 0:02:39.8]} 18. Bxe7
{[%clk 0:02:17]} 18... Qxe7 {[%clk 0:02:39.9]} 19. e4 {[%clk 0:02:16]} 19...
dxe4 {[%clk 0:02:37.6]} 20. Nxe4 {[%clk 0:02:15.9]} 20... e5 {[%clk 0:02:31.9]}
21. Nd6 {[%clk 0:02:00]} 21... exd4 {[%clk 0:02:30]} 22. Qxd4 {[%clk 0:02:00]}
22... Qf6 {[%clk 0:02:28.6]} 23. Qd2 {[%clk 0:01:47.9]} 23... Rd8 {[%clk
0:02:25.6]} 24. b4 {[%clk 0:01:47.7]} 24... a5 {[%clk 0:02:16.6]} 25. a3 {[%clk
0:01:41.4]} 25... axb4 {[%clk 0:02:12.5]} 26. axb4 {[%clk 0:01:41.5]} 26... Ne5
{[%clk 0:02:04.5]} 27. Rfe1 {[%clk 0:01:25.3]} 27... Ra3 {[%clk 0:01:48.4]} 28.
Qb2 {[%clk 0:01:20.8]} 28... Nf3+ {[%clk 0:01:44.4]} 29. gxf3 {[%clk 0:01:20.3]}
29... Qxb2 {[%clk 0:01:45]} 0-1

[Event "Late-Titled-Tuesday-Blitz-August-29-2023"]
[Site "Chess.com"]
[Date "2023.08.29"]
[Round "3"]
[White "fastestmindalive"]
[Black "Rud_Makarian"]
[Result "0-1"]
[WhiteElo "2741"]
[BlackElo "3012"]
[TimeControl "180+1"]
[EndTime "14:25:11 PDT"]
[Termination "Rud_Makarian won by resignation"]

1. e4 {[%clk 0:03:00]} 1... c5 {[%clk 0:03:00.2]} 2. Nc3 {[%clk 0:02:59.2]} 2...
Nc6 {[%clk 0:03:00.7]} 3. f4 {[%clk 0:02:58.6]} 3... g6 {[%clk 0:02:59.6]} 4.
Nf3 {[%clk 0:02:59]} 4... Bg7 {[%clk 0:03:00.4]} 5. Bb5 {[%clk 0:02:59.4]} 5...
Nd4 {[%clk 0:03:00.5]} 6. a4 {[%clk 0:03:00.1]} 6... e6 {[%clk 0:02:59.2]} 7.
Nxd4 {[%clk 0:02:55.2]} 7... cxd4 {[%clk 0:02:59]} 8. Ne2 {[%clk 0:02:55]} 8...
Ne7 {[%clk 0:02:58.9]} 9. c3 {[%clk 0:02:48.7]} 9... a6 {[%clk 0:02:54.9]} 10.
Bd3 {[%clk 0:02:40.4]} 10... Nc6 {[%clk 0:02:55]} 11. b4 {[%clk 0:02:29.6]}
11... O-O {[%clk 0:02:54.5]} 12. h4 {[%clk 0:02:29.3]} 12... f5 {[%clk
0:02:48.6]} 13. h5 {[%clk 0:02:26.6]} 13... fxe4 {[%clk 0:02:32.5]} 14. Bxe4
{[%clk 0:02:25.6]} 14... d5 {[%clk 0:02:33]} 15. Bb1 {[%clk 0:02:14.8]} 15... e5
{[%clk 0:02:33.2]} 16. hxg6 {[%clk 0:02:12.5]} 16... e4 {[%clk 0:02:32.5]} 17.
Rxh7 {[%clk 0:01:07.1]} 17... Qf6 {[%clk 0:02:29.3]} 18. Qb3 {[%clk 0:00:59.1]}
18... Qxg6 {[%clk 0:02:25.7]} 19. Qxd5+ {[%clk 0:00:46.8]} 19... Kxh7 {[%clk
0:02:21.9]} 20. Bxe4 {[%clk 0:00:45.8]} 20... Bf5 {[%clk 0:02:22]} 21. Bf3
{[%clk 0:00:45.5]} 21... Rad8 {[%clk 0:02:16.8]} 22. Qb3 {[%clk 0:00:34.7]}
22... d3 {[%clk 0:02:15.2]} 0-1

[Event "Late-Titled-Tuesday-Blitz-August-29-2023"]
[Site "Chess.com"]
[Date "2023.08.29"]
[Round "3"]
[White "MFatigue"]
[Black "Anton_Demchenko"]
[Result "0-1"]
[WhiteElo "2510"]
[BlackElo "2920"]
[TimeControl "180+1"]
[EndTime "14:25:18 PDT"]
[Termination "Anton_Demchenko won by resignation"]

1. e4 {[%clk 0:03:00.9]} 1... e5 {[%clk 0:02:51.2]} 2. Nf3 {[%clk 0:03:00.4]}
2... Nc6 {[%clk 0:02:49.5]} 3. d4 {[%clk 0:03:00.9]} 3... exd4 {[%clk
0:02:49.5]} 4. Bc4 {[%clk 0:03:01.6]} 4... Nf6 {[%clk 0:02:49]} 5. O-O {[%clk
0:03:01.4]} 5... Nxe4 {[%clk 0:02:47.3]} 6. Re1 {[%clk 0:03:02]} 6... d5 {[%clk
0:02:48]} 7. Bxd5 {[%clk 0:03:02.5]} 7... Qxd5 {[%clk 0:02:48.8]} 8. Nc3 {[%clk
0:03:03.2]} 8... Qd8 {[%clk 0:02:47.1]} 9. Rxe4+ {[%clk 0:03:02.3]} 9... Be7
{[%clk 0:02:46.7]} 10. Nxd4 {[%clk 0:03:02.3]} 10... f5 {[%clk 0:02:47.1]} 11.
Rf4 {[%clk 0:02:59.1]} 11... O-O {[%clk 0:02:46.6]} 12. Nxc6 {[%clk 0:02:53.4]}
12... Qxd1+ {[%clk 0:02:47.5]} 13. Nxd1 {[%clk 0:02:53.3]} 13... bxc6 {[%clk
0:02:48.4]} 14. Ra4 {[%clk 0:02:47.7]} 14... c5 {[%clk 0:02:44.9]} 15. Be3
{[%clk 0:02:35.4]} 15... a5 {[%clk 0:02:31.4]} 16. Nc3 {[%clk 0:02:34]} 16...
Bd7 {[%clk 0:02:28]} 17. Rc4 {[%clk 0:02:30]} 17... Be6 {[%clk 0:02:28.1]} 18.
Ra4 {[%clk 0:02:27.6]} 18... Rfb8 {[%clk 0:02:20.8]} 19. b3 {[%clk 0:01:51.6]}
19... c4 {[%clk 0:02:10.5]} 20. bxc4 {[%clk 0:01:20.3]} 20... Bf6 {[%clk
0:01:53.5]} 21. Bd2 {[%clk 0:01:09.1]} 21... Rb4 {[%clk 0:01:48.7]} 22. Re1
{[%clk 0:00:43]} 22... Bxc3 {[%clk 0:01:48.2]} 23. Rxb4 {[%clk 0:00:40]} 23...
Bxd2 {[%clk 0:01:48.8]} 0-1

[Event "Late-Titled-Tuesday-Blitz-August-29-2023"]
[Site "Chess.com"]
[Date "2023.08.29"]
[Round "3"]
[White "pedromartinez91"]
[Black "kleinebeer98"]
[Result "0-1"]
[WhiteElo "2496"]
[BlackElo "2755"]
[TimeControl "180+1"]
[EndTime "14:25:37 PDT"]
[Termination "kleinebeer98 won by resignation"]

1. e4 {[%clk 0:02:09.1]} 1... e5 {[%clk 0:02:59]} 2. Nf3 {[%clk 0:02:07.6]} 2...
Nc6 {[%clk 0:02:59.7]} 3. Bb5 {[%clk 0:02:07.3]} 3... f5 {[%clk 0:03:00.5]} 4.
d3 {[%clk 0:01:56.4]} 4... fxe4 {[%clk 0:02:59.1]} 5. dxe4 {[%clk 0:01:57.3]}
5... Nf6 {[%clk 0:02:59.3]} 6. Qd3 {[%clk 0:01:56.3]} 6... d6 {[%clk 0:02:58.9]}
7. Nc3 {[%clk 0:01:14]} 7... Be7 {[%clk 0:02:57.8]} 8. Qc4 {[%clk 0:01:11.8]}
8... Qd7 {[%clk 0:02:57.4]} 9. Nd5 {[%clk 0:01:06.4]} 9... a6 {[%clk 0:02:57.4]}
10. Bxc6 {[%clk 0:01:05.9]} 10... bxc6 {[%clk 0:02:58.3]} 11. Nxe7 {[%clk
0:01:05.7]} 11... Kxe7 {[%clk 0:02:59.2]} 12. Be3 {[%clk 0:00:55.9]} 12... c5
{[%clk 0:02:58.6]} 13. Nd2 {[%clk 0:00:43.9]} 13... Qb5 {[%clk 0:02:57.5]} 14.
f3 {[%clk 0:00:42.2]} 14... Be6 {[%clk 0:02:57.5]} 15. Qc3 {[%clk 0:00:41.5]}
15... a5 {[%clk 0:02:55.2]} 16. a4 {[%clk 0:00:31.4]} 16... Qa6 {[%clk
0:02:55.4]} 17. b3 {[%clk 0:00:30.6]} 17... Rhf8 {[%clk 0:02:54.1]} 18. O-O-O
{[%clk 0:00:15.9]} 18... Kf7 {[%clk 0:02:54.7]} 19. f4 {[%clk 0:00:16]} 19...
exf4 {[%clk 0:02:53.3]} 20. Bxf4 {[%clk 0:00:16.7]} 20... Kg8 {[%clk 0:02:54.2]}
21. Rhf1 {[%clk 0:00:14.9]} 21... Ng4 {[%clk 0:02:54]} 22. Bg3 {[%clk
0:00:13.4]} 22... c4 {[%clk 0:02:42.7]} 23. Rxf8+ {[%clk 0:00:13.1]} 23... Rxf8
{[%clk 0:02:42.5]} 24. Nxc4 {[%clk 0:00:13.5]} 24... Bxc4 {[%clk 0:02:42.8]} 25.
Qxc4+ {[%clk 0:00:14.2]} 25... Qxc4 {[%clk 0:02:43]} 26. bxc4 {[%clk 0:00:15.1]}
26... Ne3 {[%clk 0:02:43.8]} 27. Rd4 {[%clk 0:00:14.2]} 27... Nxg2 {[%clk
0:02:42.1]} 28. e5 {[%clk 0:00:14.6]} 28... dxe5 {[%clk 0:02:38.3]} 29. Bxe5
{[%clk 0:00:15.5]} 29... Ne3 {[%clk 0:02:21]} 30. Rd7 {[%clk 0:00:14.5]} 30...
Rf1+ {[%clk 0:02:21.6]} 31. Kd2 {[%clk 0:00:08.1]} 31... Nxc4+ {[%clk
0:02:21.9]} 32. Kc3 {[%clk 0:00:08.5]} 32... Nxe5 {[%clk 0:02:22.2]} 33. Rxc7
{[%clk 0:00:09.3]} 33... Rf4 {[%clk 0:02:21.1]} 34. Rc8+ {[%clk 0:00:07.7]}
34... Kf7 {[%clk 0:02:17.2]} 0-1

[Event "Late-Titled-Tuesday-Blitz-August-29-2023"]
[Site "Chess.com"]
[Date "2023.08.29"]
[Round "3"]
[White "Fleetw00dMac"]
[Black "promen1999"]
[Result "0-1"]
[WhiteElo "2467"]
[BlackElo "2854"]
[TimeControl "180+1"]
[EndTime "14:25:41 PDT"]
[Termination "promen1999 won by resignation"]

1. d4 {[%clk 0:03:00.9]} 1... d5 {[%clk 0:02:57.2]} 2. c4 {[%clk 0:03:00.8]}
2... dxc4 {[%clk 0:02:56.8]} 3. e3 {[%clk 0:03:00.4]} 3... a6 {[%clk 0:02:55.8]}
4. Bxc4 {[%clk 0:03:00]} 4... b5 {[%clk 0:02:55.7]} 5. Bd3 {[%clk 0:02:57.4]}
5... Bb7 {[%clk 0:02:55.1]} 6. Nf3 {[%clk 0:02:56.9]} 6... e6 {[%clk 0:02:55.3]}
7. O-O {[%clk 0:02:55.2]} 7... Nf6 {[%clk 0:02:55.6]} 8. a4 {[%clk 0:02:50.5]}
8... b4 {[%clk 0:02:54.5]} 9. a5 {[%clk 0:02:47.6]} 9... Nbd7 {[%clk 0:02:53.8]}
10. Nbd2 {[%clk 0:02:45.9]} 10... c5 {[%clk 0:02:51.7]} 11. Nb3 {[%clk
0:02:44.1]} 11... cxd4 {[%clk 0:02:50.8]} 12. exd4 {[%clk 0:02:41.1]} 12... Bd6
{[%clk 0:02:50.1]} 13. Qe2 {[%clk 0:02:38]} 13... O-O {[%clk 0:02:47.6]} 14. Bd2
{[%clk 0:02:32.5]} 14... h6 {[%clk 0:02:42.8]} 15. Rfe1 {[%clk 0:02:30.5]} 15...
Bd5 {[%clk 0:02:40.4]} 16. Bc4 {[%clk 0:02:14.4]} 16... Qb8 {[%clk 0:02:38]} 17.
h3 {[%clk 0:02:07.3]} 17... Rc8 {[%clk 0:02:32.1]} 18. Rec1 {[%clk 0:02:00.8]}
18... Qb7 {[%clk 0:02:25.3]} 19. Be3 {[%clk 0:01:46.1]} 19... Rc7 {[%clk
0:02:09.8]} 20. Bxd5 {[%clk 0:01:42.8]} 20... Qxd5 {[%clk 0:02:06.9]} 21. Rxc7
{[%clk 0:01:38.7]} 21... Bxc7 {[%clk 0:02:07.8]} 22. Nfd2 {[%clk 0:01:38.4]}
22... Bd8 {[%clk 0:02:05.5]} 23. Rc1 {[%clk 0:01:28.8]} 23... Bxa5 {[%clk
0:02:02]} 24. Qc4 {[%clk 0:01:20]} 24... Bd8 {[%clk 0:01:59]} 25. Qxb4 {[%clk
0:01:07]} 25... a5 {[%clk 0:01:38.8]} 26. Qc4 {[%clk 0:01:02.5]} 26... Rb8
{[%clk 0:01:38.6]} 27. Qxd5 {[%clk 0:00:59.6]} 27... Nxd5 {[%clk 0:01:38.2]} 28.
Rc4 {[%clk 0:00:55.2]} 28... f5 {[%clk 0:01:33.3]} 29. g3 {[%clk 0:00:50.2]}
29... g5 {[%clk 0:01:32.8]} 0-1

[Event "Late-Titled-Tuesday-Blitz-August-29-2023"]
[Site "Chess.com"]
[Date "2023.08.29"]
[Round "3"]
[White "ATM622"]
[Black "valemava"]
[Result "0-1"]
[WhiteElo "2459"]
[BlackElo "2323"]
[TimeControl "180+1"]
[EndTime "14:25:46 PDT"]
[Termination "valemava won by resignation"]

1. d4 {[%clk 0:03:00.9]} 1... c6 {[%clk 0:02:57.1]} 2. c4 {[%clk 0:03:01.5]}
2... b5 {[%clk 0:02:57.1]} 3. cxb5 {[%clk 0:03:00.2]} 3... cxb5 {[%clk 0:02:58]}
4. e3 {[%clk 0:03:00.4]} 4... Bb7 {[%clk 0:02:58.3]} 5. Nf3 {[%clk 0:02:58.2]}
5... a6 {[%clk 0:02:58]} 6. a4 {[%clk 0:02:57.5]} 6... b4 {[%clk 0:02:58.1]} 7.
Bc4 {[%clk 0:02:55.5]} 7... e6 {[%clk 0:02:57.9]} 8. O-O {[%clk 0:02:53.6]} 8...
Nf6 {[%clk 0:02:57.9]} 9. Nbd2 {[%clk 0:02:52.3]} 9... Be7 {[%clk 0:02:57.2]}
10. Re1 {[%clk 0:02:51.3]} 10... O-O {[%clk 0:02:56.9]} 11. e4 {[%clk
0:02:51.3]} 11... d5 {[%clk 0:02:57]} 12. Bd3 {[%clk 0:02:45.7]} 12... dxe4
{[%clk 0:02:56.9]} 13. Nxe4 {[%clk 0:02:46.6]} 13... Nbd7 {[%clk 0:02:52]} 14.
Bf4 {[%clk 0:02:36.7]} 14... Nxe4 {[%clk 0:02:51.3]} 15. Bxe4 {[%clk 0:02:37.6]}
15... Bxe4 {[%clk 0:02:51.3]} 16. Rxe4 {[%clk 0:02:38.3]} 16... Nf6 {[%clk
0:02:51.6]} 17. Re1 {[%clk 0:02:38.7]} 17... Nd5 {[%clk 0:02:51.7]} 18. Bg3
{[%clk 0:02:38.9]} 18... h6 {[%clk 0:02:51]} 19. Rc1 {[%clk 0:02:38.5]} 19...
Rc8 {[%clk 0:02:43.7]} 20. Ne5 {[%clk 0:02:37.7]} 20... Bg5 {[%clk 0:02:35.5]}
21. Rxc8 {[%clk 0:02:28.3]} 21... Qxc8 {[%clk 0:02:36.4]} 22. h4 {[%clk
0:02:24]} 22... Bf6 {[%clk 0:02:34.3]} 23. Qd2 {[%clk 0:02:18.4]} 23... Bxe5
{[%clk 0:02:32.2]} 24. Bxe5 {[%clk 0:02:14.9]} 24... Qc6 {[%clk 0:02:29.7]} 25.
Qd1 {[%clk 0:02:10.3]} 25... Rc8 {[%clk 0:02:28]} 26. Qg4 {[%clk 0:02:02.1]}
26... f6 {[%clk 0:02:27.3]} 27. Bg3 {[%clk 0:01:59.1]} 27... Re8 {[%clk
0:02:22.6]} 28. h5 {[%clk 0:01:47.2]} 28... Nb6 {[%clk 0:01:54.5]} 29. b3 {[%clk
0:01:36.7]} 29... Qd5 {[%clk 0:01:53.7]} 30. Bc7 {[%clk 0:01:27.6]} 30... Nd7
{[%clk 0:01:52.3]} 31. Qg6 {[%clk 0:01:26]} 31... Rc8 {[%clk 0:01:48.2]} 32. Bf4
{[%clk 0:01:23]} 32... Nf8 {[%clk 0:01:47.9]} 33. Qg3 {[%clk 0:01:18]} 33... Rc3
{[%clk 0:01:45.1]} 34. Re3 {[%clk 0:01:05.9]} 34... Qxb3 {[%clk 0:01:44.2]} 35.
Bxh6 {[%clk 0:01:02]} 35... Qd1+ {[%clk 0:01:41.3]} 36. Kh2 {[%clk 0:00:53]}
36... Qxh5+ {[%clk 0:01:40.4]} 37. Kg1 {[%clk 0:00:49.4]} 37... Rc1+ {[%clk
0:01:38.5]} 0-1

[Event "Late-Titled-Tuesday-Blitz-August-29-2023"]
[Site "Chess.com"]
[Date "2023.08.29"]
[Round "3"]
[White "Durarbayli"]
[Black "Machteld145"]
[Result "1-0"]
[WhiteElo "2904"]
[BlackElo "2502"]
[TimeControl "180+1"]
[EndTime "14:25:49 PDT"]
[Termination "Durarbayli won by resignation"]

1. e4 {[%clk 0:03:00.9]} 1... c5 {[%clk 0:02:59.8]} 2. Nf3 {[%clk 0:03:00.8]}
2... e6 {[%clk 0:03:00.1]} 3. d4 {[%clk 0:03:01]} 3... cxd4 {[%clk 0:02:59.1]}
4. Nxd4 {[%clk 0:03:01.9]} 4... Nf6 {[%clk 0:02:59.1]} 5. Nc3 {[%clk 0:03:02.1]}
5... Nc6 {[%clk 0:02:59.4]} 6. g3 {[%clk 0:03:00.1]} 6... Qc7 {[%clk 0:02:54.1]}
7. Bg2 {[%clk 0:02:59.7]} 7... a6 {[%clk 0:02:53]} 8. O-O {[%clk 0:02:59.1]}
8... Be7 {[%clk 0:02:53.2]} 9. Re1 {[%clk 0:02:59.2]} 9... O-O {[%clk
0:02:53.3]} 10. Nxc6 {[%clk 0:02:59.2]} 10... bxc6 {[%clk 0:02:50.8]} 11. e5
{[%clk 0:03:00.1]} 11... Nd5 {[%clk 0:02:50.4]} 12. Qg4 {[%clk 0:02:57]} 12...
f5 {[%clk 0:02:36.7]} 13. exf6 {[%clk 0:02:56.5]} 13... Bxf6 {[%clk 0:02:31.4]}
14. Ne4 {[%clk 0:02:56.3]} 14... Qa7 {[%clk 0:02:12.1]} 15. c4 {[%clk
0:02:52.4]} 15... Bd4 {[%clk 0:02:06.3]} 16. cxd5 {[%clk 0:02:40]} 16... Bxf2+
{[%clk 0:02:05]} 17. Kh1 {[%clk 0:02:40.4]} 17... Bxe1 {[%clk 0:01:58.2]} 18.
Bh6 {[%clk 0:02:40.9]} 18... Qd4 {[%clk 0:01:49.9]} 19. Rd1 {[%clk 0:02:10]}
19... Qxb2 {[%clk 0:01:14.7]} 20. dxe6 {[%clk 0:02:10]} 20... d5 {[%clk
0:01:00]} 21. Be3 {[%clk 0:02:00.9]} 21... Qc2 {[%clk 0:00:26.7]} 22. Bd4 {[%clk
0:01:52.5]} 22... Rf1+ {[%clk 0:00:14.8]} 23. Bxf1 {[%clk 0:01:50.9]} 23...
Qxe4+ {[%clk 0:00:14.9]} 24. Qxe4 {[%clk 0:01:51.1]} 24... dxe4 {[%clk
0:00:15.8]} 25. Bc4 {[%clk 0:01:45.5]} 25... Kf8 {[%clk 0:00:10.7]} 1-0

[Event "Late-Titled-Tuesday-Blitz-August-29-2023"]
[Site "Chess.com"]
[Date "2023.08.29"]
[Round "3"]
[White "jefferyx"]
[Black "lamomiajunior"]
[Result "1/2-1/2"]
[WhiteElo "3021"]
[BlackElo "2753"]
[TimeControl "180+1"]
[EndTime "14:25:53 PDT"]
[Termination "Game drawn by repetition"]

1. e4 {[%clk 0:03:00.9]} 1... c6 {[%clk 0:02:59.5]} 2. Nf3 {[%clk 0:03:00.9]}
2... d5 {[%clk 0:03:00.4]} 3. d3 {[%clk 0:03:01.5]} 3... g6 {[%clk 0:03:00.5]}
4. e5 {[%clk 0:03:01.3]} 4... Bg7 {[%clk 0:03:00.8]} 5. d4 {[%clk 0:03:01.9]}
5... f6 {[%clk 0:03:01.4]} 6. Be2 {[%clk 0:02:54.9]} 6... Bg4 {[%clk 0:03:00.5]}
7. Nbd2 {[%clk 0:02:54.4]} 7... Nd7 {[%clk 0:02:52]} 8. exf6 {[%clk 0:02:54.5]}
8... Ngxf6 {[%clk 0:02:52.2]} 9. O-O {[%clk 0:02:53.9]} 9... O-O {[%clk
0:02:52.2]} 10. Ng5 {[%clk 0:02:45]} 10... Bf5 {[%clk 0:02:27.2]} 11. Bd3 {[%clk
0:02:45]} 11... Bxd3 {[%clk 0:02:14.2]} 12. cxd3 {[%clk 0:02:45.9]} 12... Qc8
{[%clk 0:02:12]} 13. Ne6 {[%clk 0:02:40.5]} 13... Rf7 {[%clk 0:02:10.1]} 14. Ng5
{[%clk 0:02:40.7]} 14... Rf8 {[%clk 0:02:10.4]} 15. Ne6 {[%clk 0:02:35.2]} 15...
Rf7 {[%clk 0:02:10.2]} 16. Nxg7 {[%clk 0:02:35.9]} 16... Kxg7 {[%clk 0:02:05.5]}
17. Re1 {[%clk 0:02:36.8]} 17... Qc7 {[%clk 0:02:03.5]} 18. Nf3 {[%clk 0:02:37]}
18... h6 {[%clk 0:01:47.4]} 19. Bd2 {[%clk 0:02:19.4]} 19... Raf8 {[%clk
0:01:31.3]} 20. Rc1 {[%clk 0:02:13.3]} 20... Ng4 {[%clk 0:01:26.9]} 21. h3
{[%clk 0:02:00.3]} 21... Nxf2 {[%clk 0:01:04.5]} 22. Kxf2 {[%clk 0:01:53.3]}
22... Rxf3+ {[%clk 0:01:04.7]} 23. gxf3 {[%clk 0:01:13.2]} 23... Qh2+ {[%clk
0:01:04.7]} 24. Ke3 {[%clk 0:01:01.4]} 24... Qf4+ {[%clk 0:00:49.4]} 25. Kf2
{[%clk 0:01:01.5]} 25... Qh2+ {[%clk 0:00:50]} 26. Ke3 {[%clk 0:01:01.8]} 26...
Qf4+ {[%clk 0:00:50.3]} 27. Kf2 {[%clk 0:01:02.2]} 27... Qh2+ {[%clk 0:00:51.1]}
1/2-1/2

[Event "Late-Titled-Tuesday-Blitz-August-29-2023"]
[Site "Chess.com"]
[Date "2023.08.29"]
[Round "3"]
[White "Jojo_898"]
[Black "Mariia89"]
[Result "1-0"]
[WhiteElo "2366"]
[BlackElo "1967"]
[TimeControl "180+1"]
[EndTime "14:25:54 PDT"]
[Termination "Jojo_898 won by checkmate"]

1. e4 {[%clk 0:03:00.9]} 1... c6 {[%clk 0:02:59.4]} 2. d4 {[%clk 0:03:00.1]}
2... d5 {[%clk 0:02:59.3]} 3. Nc3 {[%clk 0:03:00.8]} 3... dxe4 {[%clk
0:02:58.8]} 4. Nxe4 {[%clk 0:03:01.7]} 4... Nf6 {[%clk 0:02:59.3]} 5. Ng3 {[%clk
0:03:01.8]} 5... h5 {[%clk 0:02:58.3]} 6. h4 {[%clk 0:03:01.2]} 6... c5 {[%clk
0:02:57.5]} 7. c3 {[%clk 0:02:54.3]} 7... cxd4 {[%clk 0:02:56.3]} 8. cxd4 {[%clk
0:02:54]} 8... Nc6 {[%clk 0:02:49.5]} 9. Be3 {[%clk 0:02:47.4]} 9... Nd5 {[%clk
0:02:41.6]} 10. Bg5 {[%clk 0:02:12.6]} 10... Qb6 {[%clk 0:02:31.3]} 11. Nf3
{[%clk 0:02:02.6]} 11... Bg4 {[%clk 0:02:28.5]} 12. Be2 {[%clk 0:01:54.7]} 12...
e6 {[%clk 0:02:24.9]} 13. O-O {[%clk 0:01:54.5]} 13... Bd6 {[%clk 0:02:03.8]}
14. Ne4 {[%clk 0:01:52.1]} 14... Bf8 {[%clk 0:01:41.3]} 15. Be3 {[%clk
0:01:45.6]} 15... Be7 {[%clk 0:01:36.3]} 16. b3 {[%clk 0:01:44.3]} 16... O-O
{[%clk 0:01:34.1]} 17. Rc1 {[%clk 0:01:39.4]} 17... a5 {[%clk 0:01:31.8]} 18.
Nfg5 {[%clk 0:01:37.6]} 18... Bxe2 {[%clk 0:01:23.7]} 19. Qxe2 {[%clk
0:01:38.5]} 19... g6 {[%clk 0:01:23.8]} 20. Rfd1 {[%clk 0:01:36.9]} 20... a4
{[%clk 0:01:23.3]} 21. bxa4 {[%clk 0:01:31.3]} 21... Rxa4 {[%clk 0:01:22.3]} 22.
Rd2 {[%clk 0:01:29.4]} 22... Ra3 {[%clk 0:01:09.2]} 23. Nc5 {[%clk 0:01:22.8]}
23... Rfa8 {[%clk 0:00:58.3]} 24. Qf3 {[%clk 0:01:20.5]} 24... Bxc5 {[%clk
0:00:45.6]} 25. Qxf7+ {[%clk 0:01:17.3]} 25... Kh8 {[%clk 0:00:44.1]} 26. Qh7#
{[%clk 0:01:16.7]} 1-0